bitfinex/quotes_SOLUSD_20220306
["timestamp","ask_amount","ask_price","bid_price","bid_amount"]
[1646538143170,1.51714045,87.764,87.73,16.42]
[1646538143569,61.61053818,87.77,87.71,19.25613526]
[1646538143570,1.51714045,87.763,87.71,19.25613526]
[1646538143768,1.51714045,87.757,87.695,24.4903]
[1646538143969,61.61053818,87.77,87.695,24.4903]
[1646538143970,1.51714045,87.748,87.695,24.4903]
[1646538144169,1.51714045,87.746,87.695,24.4903]
[1646538144371,1.51714045,87.744,87.695,24.4903]
[1646538144570,1.51714045,87.743,87.695,24.4903]
[1646538144869,60.47284606,87.742,87.695,24.4903]
[1646538146570,59.97284606,87.742,87.695,24.4903]
[1646538147171,59.97284606,87.742,87.69,17.1049]
[1646538147370,1.51714045,87.74,87.689,61.52976268]
[1646538147570,1.51714045,87.737,87.682,2.83613526]
[1646538147970,1.51714045,87.735,87.682,2.83613526]
[1646538148370,1.51714045,87.733,87.682,2.83613526]
[1646538148773,1.51714045,87.732,87.682,2.83613526]
[1646538149070,1.51714045,87.731,87.682,2.83613526]
[1646538149271,1.51714045,87.733,87.682,2.83613526]
[1646538149570,7.21714045,87.732,87.682,2.83613526]
[1646538149771,1.51714045,87.732,87.682,2.83613526]
[1646538149972,1.51714045,87.73,87.682,2.83613526]
[1646538151874,1.51714045,87.729,87.682,2.83613526]
[1646538152274,1.51714045,87.73,87.682,2.83613526]
[1646538152673,59.97284606,87.742,87.682,2.83613526]
[1646538152674,1.51714045,87.732,87.682,2.83613526]
[1646538153076,1.51714045,87.731,87.682,2.83613526]
[1646538153480,1.51714045,87.732,87.682,2.83613526]
[1646538154080,1.51714045,87.733,87.682,2.83613526]
[1646538154479,1.51714045,87.732,87.682,2.83613526]
[1646538154878,1.51714045,87.733,87.681,2.83613526]
[1646538155080,1.51714045,87.732,87.681,2.83613526]
[1646538155279,1.51714045,87.733,87.681,2.83613526]
[1646538155479,1.51714045,87.733,87.69,17.1049]
[1646538155679,1.51714045,87.739,87.69,33.5249]
[1646538155880,1.51714045,87.74,87.691,2.83613526]
[1646538156279,1.51714045,87.757,87.691,2.83613526]
[1646538156480,1.51714045,87.755,87.692,23.0137]
[1646538156682,1.51714045,87.755,87.693,42.65951933]
[1646538156882,1.51714045,87.755,87.693,45.49565459]
[1646538157082,1.51714045,87.755,87.7,17.0994]
[1646538157283,1.51714045,87.755,87.71,16.42]
[1646538157483,1.51714045,87.756,87.711,48.9175753]
[1646538157888,1.51714045,87.757,87.711,51.75371056]
[1646538158084,1.51714045,87.761,87.712,2.83613526]
[1646538158284,1.51714045,87.762,87.72,17.0989]
[1646538158488,1.51714045,87.763,87.73,16.42]
[1646538158885,1.51714045,87.763,87.731,49.53904806]
[1646538159085,1.51714045,87.763,87.731,2.83613526]
[1646538159286,1.51714045,87.764,87.731,2.83613526]
[1646538159485,1.51714045,87.763,87.731,2.83613526]
[1646538159687,1.51714045,87.762,87.731,2.83613526]
[1646538160187,1.51714045,87.763,87.731,2.83613526]
[1646538160987,1.51714045,87.762,87.731,10.14613526]
[1646538161194,1.51714045,87.764,87.731,10.14613526]
[1646538161589,1.51714045,87.764,87.71,56.9863]
[1646538161590,180.7,87.762,87.56,114.0108]
[1646538161790,10.0,87.763,87.36,190.7]
[1646538161791,113.1,87.755,87.653,551.01383107]
[1646538161994,1.51714045,87.712,87.598,85.44609293]
[1646538162191,4.59896202,87.622,87.6,257.53283511]
[1646538162391,6.23356497,87.671,87.61,16.42]
[1646538162591,7.68178938,87.672,87.61,16.42]
[1646538163890,13.91535435,87.672,87.61,16.42]
[1646538164090,26.39234975,87.672,87.61,16.42]
[1646538164290,18.71056037,87.672,87.61,16.42]
[1646538164490,12.4769954,87.672,87.61,16.42]
[1646538164689,7.68178938,87.679,87.61,16.42]
[1646538164890,6.23356497,87.671,87.61,16.42]
[1646538165091,7.68178938,87.679,87.61,16.42]
[1646538165293,7.68178938,87.679,87.611,5.704]
[1646538166491,7.68178938,87.694,87.61,33.5355]
[1646538166693,5.704,87.693,87.619,113.1]
[1646538166892,6.23356497,87.692,87.637,113.1]
[1646538167094,5.704,87.723,87.62,5.704]
[1646538167095,6.23356497,87.717,87.65,16.42]
[1646538167294,6.23356497,87.717,87.651,5.702]
[1646538167693,0.00419289,87.652,87.651,8.53813526]
[1646538167893,6.23356497,87.717,87.652,54.86952499]
[1646538168093,7.68178938,87.732,87.652,57.70566025]
[1646538168293,7.68178938,87.732,87.653,2.83613526]
[1646538168492,7.68178938,87.732,87.653,115.93613526]
[1646538168693,7.68178938,87.732,87.66,17.1063]
[1646538168894,7.68178938,87.732,87.661,5.701]
[1646538169093,7.68178938,87.732,87.661,8.53713526]
[1646538169493,18.71056037,87.749,87.661,8.53713526]
[1646538169693,6.23356497,87.731,87.662,2.83613526]
[1646538169893,6.23356497,87.748,87.663,5.7]
[1646538170093,6.23356497,87.73,87.663,5.7]
[1646538170393,6.23356497,87.729,87.664,2.83613526]
[1646538170594,49.69655808,87.734,87.666,56.89228634]
[1646538170793,6.23356497,87.733,87.667,5.7]
[1646538170993,18.71056037,87.733,87.667,8.53613526]
[1646538171195,18.71056037,87.733,87.668,2.83613526]
[1646538171398,18.71056037,87.733,87.669,5.7]
[1646538171794,6.23356497,87.75,87.671,113.1]
[1646538171995,5.7,87.749,87.674,71.87992989]
[1646538172196,24.9539908,87.753,87.685,113.1]
[1646538172396,24.9539908,87.753,87.701,113.1]
[1646538172397,6.23356497,87.748,87.701,113.1]
[1646538172597,7.18178938,87.779,87.71,16.42]
[1646538172999,5.698,87.778,87.71,16.42]
[1646538173199,6.23356497,87.777,87.711,2.83613526]
[1646538173398,5.698,87.776,87.711,2.83613526]
[1646538173901,6.23356497,87.775,87.711,2.83613526]
[1646538174100,5.698,87.774,87.711,2.83613526]
[1646538174319,6.23356497,87.773,87.711,2.83613526]
[1646538174618,5.698,87.811,87.711,2.83613526]
[1646538174820,51.01131502,87.81,87.711,2.83613526]
[1646538175021,18.1739954,87.809,87.711,2.83613526]
[1646538175619,12.4769954,87.809,87.711,2.83613526]
[1646538176923,118.797,87.808,87.711,2.83613526]
[1646538177121,180.7,87.806,87.702,55.91717159]
[1646538177320,180.7,87.804,87.702,55.91717159]
[1646538177520,113.1,87.799,87.702,55.91717159]
[1646538177720,113.1,87.797,87.702,55.91717159]
[1646538177921,53.71162062,87.796,87.702,55.91717159]
[1646538178120,66.18861602,87.796,87.702,55.91717159]
[1646538178323,12.4769954,87.795,87.702,58.75330685]
[1646538178523,5.698,87.794,87.702,58.75330685]
[1646538180223,27.97564117,87.794,87.702,58.75330685]
[1646538182424,27.97564117,87.794,87.702,36.93205332]
[1646538182625,5.698,87.794,87.702,36.93205332]
[1646538183024,5.698,87.798,87.702,36.93205332]
[1646538183224,5.698,87.802,87.703,23.0581]
[1646538183624,52.42867413,87.801,87.704,2.83613526]
[1646538183824,18.1739954,87.8,87.704,2.83613526]
[1646538184026,18.1739954,87.8,87.71,17.0995]
[1646538184426,18.1739954,87.8,87.711,2.83613526]
[1646538188129,18.1739954,87.8,87.72,17.0977]
[1646538188330,18.1739954,87.8,87.721,45.86300161]
[1646538188531,18.1739954,87.8,87.721,48.69913687]
[1646538188732,18.1739954,87.8,87.721,45.86300161]
[1646538188932,18.1739954,87.8,87.722,2.83613526]
[1646538193639,12.4769954,87.8,87.722,2.83613526]
[1646538196244,52.42867413,87.801,87.722,2.83613526]
[1646538197745,12.46705944,87.8,87.722,2.83613526]
[1646538199246,5.697,87.799,87.722,2.83613526]
[1646538202349,5.697,87.799,87.721,26.88130376]
[1646538202547,5.697,87.799,87.721,51.09560376]
[1646538202748,7.61721816,87.79,87.722,2.83613526]
[1646538204154,7.61721816,87.79,87.73,17.0957]
[1646538204552,7.61721816,87.79,87.731,2.83613526]
[1646538204854,5.697,87.799,87.731,2.83613526]
[1646538204855,7.61721816,87.792,87.731,2.83613526]
[1646538205053,5.697,87.791,87.731,2.83613526]
[1646538205855,7.61721816,87.792,87.731,2.83613526]
[1646538207054,7.61721816,87.794,87.731,2.83613526]
[1646538208982,7.61721816,87.796,87.731,2.83613526]
[1646538209680,7.61721816,87.796,87.721,51.09560376]
[1646538209883,5.697,87.795,87.721,51.09560376]
[1646538211280,7.61721816,87.793,87.721,51.09560376]
[1646538211481,5.697,87.792,87.721,51.09560376]
[1646538213383,13.31421816,87.792,87.721,51.09560376]
[1646538213583,7.61721816,87.792,87.721,51.09560376]
[1646538214783,5.697,87.791,87.721,51.09560376]
[1646538215286,5.697,87.791,87.721,26.88130376]
[1646538215684,7.61721816,87.779,87.69,2.83613526]
[1646538215883,5.698,87.778,87.69,2.83613526]
[1646538216285,5.698,87.778,87.7,17.1013]
[1646538216485,7.61721816,87.779,87.7,17.1013]
[1646538216685,50.55999715,87.777,87.712,50.51454015]
[1646538216887,5.698,87.776,87.712,50.51454015]
[1646538217285,18.16505944,87.776,87.712,50.51454015]
[1646538222489,4.56144474,87.735,87.712,28.69447863]
[1646538223691,4.56144474,87.743,87.712,28.69447863]
[1646538224693,4.56144474,87.737,87.712,28.69447863]
[1646538224894,4.56144474,87.737,87.701,24.6562]
[1646538225095,4.56144474,87.737,87.7,17.1017]
[1646538225903,62.88158578,87.736,87.7,17.1017]
[1646538226097,62.88158578,87.736,87.698,63.56353038]
[1646538227997,4.56144474,87.737,87.698,63.56353038]
[1646538229099,4.56144474,87.738,87.698,63.56353038]
[1646538231601,4.56144474,87.738,87.681,23.2012]
[1646538231800,11.42144474,87.738,87.681,23.2012]
[1646538232201,5.7,87.737,87.681,23.2012]
[1646538232401,4.56144474,87.727,87.681,23.2012]
[1646538232601,58.42247172,87.726,87.681,23.2012]
[1646538233204,58.42247172,87.726,87.652,15.43821018]
[1646538233502,58.42247172,87.726,87.651,2.83613526]
[1646538233503,4.56144474,87.72,87.651,2.83613526]
[1646538233801,5.702,87.719,87.651,16.7147]
[1646538234201,5.702,87.719,87.652,51.14021472]
[1646538234403,4.56144474,87.713,87.652,51.14021472]
[1646538234602,50.55269538,87.711,87.652,51.14021472]
[1646538234802,5.702,87.71,87.652,51.14021472]
[1646538236004,5.702,87.71,87.646,16.9755]
[1646538236205,5.702,87.71,87.641,2.83613526]
[1646538236404,18.17870122,87.71,87.623,2.83613526]
[1646538236606,4.56144474,87.695,87.623,2.83613526]
[1646538236804,4.56144474,87.695,87.609,24.4051]
[1646538236805,113.1,87.693,87.609,24.4051]
[1646538237005,56.57148259,87.691,87.609,24.4051]
[1646538237304,5.704,87.69,87.609,24.4051]
[1646538238104,22.8295,87.69,87.609,24.4051]
[1646538238305,113.1,87.689,87.593,2.83613526]
[1646538238510,113.1,87.687,87.579,2.83613526]
[1646538238709,113.1,87.685,87.579,2.83613526]
[1646538238906,4.56144474,87.681,87.579,2.83613526]
[1646538239105,4.56144474,87.681,87.562,47.5235]
[1646538239106,113.1,87.669,87.569,2.83613526]
[1646538239307,17.1318,87.66,87.57,51.28927934]
[1646538239506,28.7101,87.659,87.57,51.28927934]
[1646538240613,113.1,87.658,87.57,51.28927934]
[1646538240809,113.1,87.656,87.57,51.28927934]
[1646538241012,113.1,87.654,87.57,51.28927934]
[1646538241210,166.89156788,87.653,87.57,51.28927934]
[1646538241410,53.79156788,87.653,87.57,51.28927934]
[1646538241610,53.79156788,87.653,87.57,68.41607934]
[1646538242212,53.79156788,87.653,87.57,71.2522146]
[1646538243917,5.706,87.653,87.57,71.2522146]
[1646538244118,23.0041,87.659,87.581,113.1]
[1646538244318,24.6501,87.68,87.6,17.117]
[1646538244520,23.7639,87.679,87.61,16.42]
[1646538245020,62.56086969,87.678,87.611,46.94958886]
[1646538245219,62.56086969,87.678,87.611,49.78572412]
[1646538245420,62.56086969,87.678,87.612,2.83613526]
[1646538247326,5.704,87.704,87.612,2.83613526]
[1646538247522,53.0889,87.704,87.613,23.52158744]
[1646538247922,53.0889,87.704,87.614,2.83613526]
[1646538248123,53.0889,87.704,87.615,0.62028744]
[1646538248325,48.5481606,87.703,87.615,0.62028744]
[1646538248527,5.703,87.702,87.616,2.83613526]
[1646538248724,5.703,87.702,87.62,33.537]
[1646538249025,5.703,87.702,87.621,2.83613526]
[1646538249227,5.703,87.702,87.621,115.93613526]
[1646538249442,48.5481606,87.703,87.622,113.1]
[1646538249641,48.5481606,87.703,87.622,115.93613526]
[1646538249842,48.5481606,87.703,87.623,2.83613526]
[1646538250341,48.5481606,87.703,87.641,49.21595997]
[1646538250742,48.5481606,87.703,87.642,2.83613526]
[1646538251343,48.5481606,87.703,87.65,17.1111]
[1646538251543,23.5281,87.728,87.65,17.1111]
[1646538251742,23.5281,87.728,87.651,2.83613526]
[1646538252543,3.01423452,87.714,87.66,17.1094]
[1646538252745,3.01423452,87.714,87.661,58.10235821]
[1646538252943,49.36469485,87.713,87.661,39.10967745]
[1646538253343,49.36469485,87.713,87.662,2.83613526]
[1646538253944,3.01423452,87.726,87.662,2.83613526]
[1646538254144,3.01423452,87.727,87.662,2.83613526]
[1646538255046,51.36427432,87.726,87.662,2.83613526]
[1646538255447,54.37850884,87.726,87.662,2.83613526]
[1646538256945,51.36427432,87.726,87.662,2.83613526]
[1646538257148,60.07850884,87.726,87.662,2.83613526]
[1646538257348,51.36427432,87.726,87.662,2.83613526]
[1646538257548,57.06427432,87.726,87.662,2.83613526]
[1646538258345,3.01423452,87.725,87.662,2.83613526]
[1646538258746,8.71423452,87.725,87.662,2.83613526]
[1646538258949,5.7,87.725,87.662,2.83613526]
[1646538260048,51.36427432,87.726,87.662,2.83613526]
[1646538260750,3.01423452,87.726,87.662,2.83613526]
[1646538260949,3.01423452,87.726,87.67,17.1074]
[1646538261151,5.7,87.745,87.67,17.1074]
[1646538261152,3.01423452,87.731,87.67,33.5274]
[1646538261350,3.01423452,87.731,87.671,3.37374494]
[1646538261559,3.01423452,87.73,87.671,116.47374494]
[1646538261750,3.01423452,87.736,87.672,2.83613526]
[1646538261953,3.01423452,87.737,87.673,0.57022063]
[1646538262151,3.01423452,87.742,87.674,113.1]
[1646538262352,3.01423452,87.742,87.676,113.1]
[1646538262552,3.01423452,87.742,87.69,16.42]
[1646538262852,3.01423452,87.744,87.69,16.42]
[1646538263053,63.79939369,87.743,87.69,16.42]
[1646538263251,8.71423452,87.742,87.679,57.10163292]
[1646538263451,8.71423452,87.742,87.677,2.83613526]
[1646538263452,3.01423452,87.741,87.677,2.83613526]
[1646538263651,3.01423452,87.735,87.68,2.83613526]
[1646538264055,3.01423452,87.736,87.68,2.83613526]
[1646538264353,5.7,87.735,87.68,2.83613526]
[1646538264552,8.71423452,87.736,87.68,2.83613526]
[1646538264752,6.23586661,87.734,87.68,2.83613526]
[1646538264953,6.23586661,87.735,87.68,2.83613526]
[1646538265153,63.79939369,87.743,87.68,19.25613526]
[1646538265154,3.01423452,87.742,87.68,19.25613526]
[1646538265356,63.79939369,87.743,87.68,36.36133526]
[1646538265555,3.01423452,87.75,87.681,2.83613526]
[1646538265756,3.01423452,87.753,87.681,2.83613526]
[1646538265958,3.01423452,87.752,87.681,2.83613526]
[1646538266157,3.01423452,87.751,87.681,2.83613526]
[1646538266358,3.01423452,87.738,87.681,2.83613526]
[1646538266660,59.80284884,87.736,87.681,2.83613526]
[1646538267060,6.23470759,87.735,87.681,2.83613526]
[1646538267260,5.7,87.734,87.681,2.83613526]
[1646538267461,6.23470759,87.733,87.681,2.83613526]
[1646538267661,5.7,87.732,87.681,2.83613526]
[1646538267862,6.23470759,87.731,87.681,2.83613526]
[1646538268262,6.23470759,87.734,87.681,2.83613526]
[1646538268463,5.7,87.733,87.681,2.83613526]
[1646538268761,6.23470759,87.732,87.681,2.83613526]
[1646538269167,6.23470759,87.734,87.681,2.83613526]
[1646538269363,5.7,87.733,87.681,2.83613526]
[1646538269563,6.23470759,87.732,87.681,2.83613526]
[1646538269964,6.23470759,87.734,87.681,2.83613526]
[1646538270165,5.7,87.733,87.681,2.83613526]
[1646538270565,3.01423452,87.731,87.681,2.83613526]
[1646538270765,3.01423452,87.729,87.681,2.83613526]
[1646538271166,3.01423452,87.729,87.682,58.25604783]
[1646538271565,3.01423452,87.73,87.683,2.83613526]
[1646538272567,3.01423452,87.731,87.683,2.83613526]
[1646538272768,5.7,87.73,87.683,2.83613526]
[1646538272969,3.01423452,87.726,87.683,2.83613526]
[1646538273170,3.01423452,87.727,87.683,2.83613526]
[1646538273770,3.01423452,87.72,87.683,2.83613526]
[1646538273969,55.8642961,87.719,87.683,2.83613526]
[1646538274273,6.23470759,87.718,87.683,2.83613526]
[1646538275973,3.01423452,87.72,87.683,2.83613526]
[1646538276174,3.01423452,87.714,87.683,2.83613526]
[1646538277074,3.01423452,87.715,87.683,2.83613526]
[1646538277273,6.23470759,87.726,87.683,2.83613526]
[1646538277274,3.01423452,87.714,87.683,2.83613526]
[1646538277673,58.92356217,87.713,87.683,2.83613526]
[1646538277873,6.23470759,87.712,87.683,2.83613526]
[1646538278373,3.01423452,87.715,87.683,2.83613526]
[1646538278573,3.01423452,87.716,87.683,2.83613526]
[1646538278974,3.01423452,87.715,87.683,2.83613526]
[1646538279173,3.01423452,87.715,87.684,63.06797679]
[1646538279378,3.01423452,87.712,87.684,63.06797679]
[1646538279575,3.01423452,87.712,87.685,2.83613526]
[1646538281274,3.01423452,87.71,87.685,2.83613526]
[1646538281477,3.01423452,87.718,87.685,2.83613526]
[1646538281676,3.01423452,87.721,87.685,2.83613526]
[1646538281873,4.56144474,87.745,87.685,2.83613526]
[1646538281874,3.01423452,87.722,87.685,2.83613526]
[1646538282475,3.01423452,87.721,87.685,2.83613526]
[1646538283097,3.01423452,87.722,87.685,2.83613526]
[1646538283298,3.01423452,87.721,87.69,16.42]
[1646538283699,3.01423452,87.721,87.691,2.83613526]
[1646538285099,3.01423452,87.722,87.691,2.83613526]
[1646538285300,3.01423452,87.721,87.691,2.83613526]
[1646538286005,3.01423452,87.721,87.691,46.94460604]
[1646538286403,3.01423452,87.721,87.692,2.83613526]
[1646538287104,3.01423452,87.722,87.692,2.83613526]
[1646538287407,9.24894211,87.721,87.692,2.83613526]
[1646538287603,3.01423452,87.721,87.692,2.83613526]
[1646538287804,1.52081649,87.696,87.692,2.83613526]
[1646538289403,1.52081649,87.695,87.692,2.83613526]
[1646538290303,1.52081649,87.696,87.692,2.83613526]
[1646538290502,1.52081649,87.7,87.692,2.83613526]
[1646538290904,1.52081649,87.698,87.692,2.83613526]
[1646538291102,1.52081649,87.699,87.693,45.70355242]
[1646538291503,1.52081649,87.7,87.694,2.83613526]
[1646538291903,1.649e-05,87.701,87.694,2.83613526]
[1646538292103,3.01423452,87.724,87.694,2.83613526]
[1646538292406,3.01423452,87.727,87.694,2.83613526]
[1646538292603,6.23470759,87.723,87.695,22.6525]
[1646538292805,3.01423452,87.727,87.694,2.83613526]
[1646538293003,3.01423452,87.727,87.696,2.83613526]
[1646538293405,3.01423452,87.728,87.696,2.83613526]
[1646538293905,3.01423452,87.729,87.696,2.83613526]
[1646538294104,3.01423452,87.729,87.7,16.42]
[1646538294506,3.01423452,87.729,87.701,2.83613526]
[1646538294906,3.01423452,87.73,87.701,2.83613526]
[1646538295705,3.01423452,87.728,87.701,2.83613526]
[1646538295906,3.01423452,87.729,87.701,2.83613526]
[1646538296207,3.01423452,87.73,87.701,2.83613526]
[1646538296407,3.01423452,87.732,87.701,2.83613526]
[1646538298208,53.79968224,87.732,87.701,2.83613526]
[1646538298411,6.23470759,87.731,87.701,2.83613526]
[1646538299109,3.01423452,87.732,87.701,2.83613526]
[1646538299311,3.01423452,87.733,87.701,2.83613526]
[1646538299509,3.01423452,87.732,87.701,2.83613526]
[1646538300513,3.01423452,87.739,87.701,2.83613526]
[1646538300711,3.01423452,87.74,87.701,2.83613526]
[1646538301112,3.01423452,87.739,87.701,2.83613526]
[1646538301314,3.01423452,87.738,87.701,2.83613526]
[1646538301710,6.23389943,87.739,87.701,2.83613526]
[1646538301711,3.01423452,87.739,87.701,2.83613526]
[1646538301912,3.01423452,87.737,87.701,2.83613526]
[1646538302110,22.878,87.761,87.701,2.83613526]
[1646538302111,3.01423452,87.738,87.701,2.83613526]
[1646538302311,3.01423452,87.728,87.701,2.83613526]
[1646538302610,3.01423452,87.727,87.692,2.83613526]
[1646538302812,3.01423452,87.728,87.692,2.83613526]
[1646538303010,3.01423452,87.726,87.692,2.83613526]
[1646538303210,5.7,87.735,87.682,2.83613526]
[1646538303211,3.01423452,87.718,87.682,2.83613526]
[1646538303411,3.01423452,87.712,87.682,2.83613526]
[1646538303610,3.01423452,87.712,87.662,2.83613526]
[1646538304011,3.01423452,87.709,87.662,2.83613526]
[1646538304410,3.01423452,87.71,87.662,2.83613526]
[1646538304710,3.01423452,87.704,87.662,2.83613526]
[1646538304910,3.01423452,87.703,87.662,2.83613526]
[1646538305110,3.01423452,87.704,87.662,2.83613526]
[1646538305610,64.66365053,87.703,87.662,2.83613526]
[1646538305812,6.23389943,87.702,87.662,2.83613526]
[1646538309316,3.01423452,87.7,87.662,2.83613526]
[1646538309516,3.01423452,87.699,87.662,2.83613526]
[1646538309916,3.01423452,87.701,87.662,2.83613526]
[1646538310519,3.01423452,87.7,87.662,2.83613526]
[1646538310719,9.24813395,87.7,87.662,2.83613526]
[1646538310919,3.01423452,87.7,87.662,2.83613526]
[1646538311120,3.01423452,87.699,87.662,2.83613526]
[1646538311319,3.01423452,87.7,87.662,2.83613526]
[1646538312318,6.23389943,87.702,87.662,2.83613526]
[1646538313723,64.66365053,87.703,87.662,2.83613526]
[1646538314522,3.01423452,87.71,87.662,2.83613526]
[1646538314722,3.01423452,87.718,87.67,33.5272]
[1646538314921,3.01423452,87.719,87.671,0.74694501]
[1646538315123,6.23580615,87.722,87.671,3.58308027]
[1646538315322,6.23580615,87.722,87.672,2.83613526]
[1646538315525,62.73834348,87.721,87.673,0.74694501]
[1646538315722,6.23580615,87.72,87.672,2.83613526]
[1646538315923,6.23580615,87.72,87.674,2.83613526]
[1646538316121,3.01423452,87.717,87.674,2.83613526]
[1646538316322,3.01423452,87.718,87.674,2.83613526]
[1646538316522,6.23580615,87.716,87.674,2.83613526]
[1646538316724,3.01423452,87.717,87.674,2.83613526]
[1646538317025,6.23580615,87.717,87.674,2.83613526]
[1646538317322,5.7,87.716,87.674,2.83613526]
[1646538317523,6.23580615,87.715,87.674,2.83613526]
[1646538317722,6.23580615,87.715,87.68,17.105]
[1646538318125,6.23580615,87.722,87.681,2.83613526]
[1646538318923,6.23580615,87.722,87.682,30.25270061]
[1646538319323,6.23580615,87.722,87.683,2.83613526]
[1646538324129,48.2156855,87.721,87.683,2.83613526]
[1646538324352,6.23580615,87.72,87.683,2.83613526]
[1646538324551,6.23580615,87.72,87.683,19.74273526]
[1646538324751,6.23580615,87.72,87.683,2.83613526]
[1646538324951,6.23580615,87.72,87.684,2.83613526]
[1646538327053,5.73580615,87.72,87.684,2.83613526]
[1646538329953,3.01423452,87.719,87.684,2.83613526]
[1646538330754,3.01423452,87.717,87.684,2.83613526]
[1646538330958,3.01423452,87.717,87.67,17.1072]
[1646538331154,3.01423452,87.716,87.67,17.1072]
[1646538331356,3.01423452,87.716,87.67,19.94333526]
[1646538332867,3.01423452,87.717,87.671,24.8685698]
[1646538333261,3.01423452,87.718,87.672,2.83613526]
[1646538333464,3.01423452,87.717,87.672,2.83613526]
[1646538333662,3.01423452,87.717,87.68,17.1049]
[1646538333861,3.01423452,87.719,87.68,33.5249]
[1646538334061,3.01423452,87.719,87.681,3.32478419]
[1646538334263,3.01423452,87.719,87.681,2.83613526]
[1646538334562,3.01423452,87.72,87.682,2.83613526]
[1646538334962,3.01423452,87.721,87.682,2.83613526]
[1646538335163,3.01423452,87.72,87.682,2.83613526]
[1646538335363,3.01423452,87.721,87.682,2.83613526]
[1646538335564,3.01423452,87.723,87.69,17.103]
[1646538335763,4.56144474,87.745,87.69,17.103]
[1646538335764,3.01423452,87.726,87.69,33.523]
[1646538335965,3.01423452,87.726,87.691,2.83613526]
[1646538336966,3.01423452,87.725,87.691,2.83613526]
[1646538337365,3.01423452,87.731,87.691,2.83613526]
[1646538337868,3.01423452,87.73,87.691,2.83613526]
[1646538338667,3.01423452,87.731,87.691,2.83613526]
[1646538338868,3.01423452,87.73,87.691,2.83613526]
[1646538339969,3.01423452,87.73,87.691,115.93613526]
[1646538340169,4.56144474,87.755,87.693,118.65661106]
[1646538340170,3.01423452,87.728,87.693,118.65661106]
[1646538340370,3.01423452,87.746,87.694,0.67738428]
[1646538340572,3.01423452,87.752,87.695,113.1]
[1646538340772,3.01423452,87.752,87.696,0.67738428]
[1646538340972,3.01423452,87.752,87.71,16.42]
[1646538341170,3.01423452,87.754,87.72,17.0968]
[1646538341471,3.01423452,87.755,87.731,54.35852508]
[1646538342070,3.01423452,87.756,87.732,2.83613526]
[1646538342273,3.01423452,87.757,87.732,2.83613526]
[1646538343070,3.01423452,87.756,87.732,2.83613526]
[1646538343572,3.01423452,87.762,87.732,2.83613526]
[1646538344469,3.01423452,87.763,87.732,2.83613526]
[1646538344671,3.01423452,87.766,87.732,2.83613526]
[1646538344870,3.01423452,87.767,87.732,2.83613526]
[1646538345073,3.01423452,87.768,87.732,2.83613526]
[1646538346072,3.01423452,87.773,87.732,2.83613526]
[1646538346273,3.01423452,87.772,87.732,2.83613526]
[1646538346472,3.01423452,87.773,87.732,2.83613526]
[1646538348073,3.01423452,87.772,87.732,2.83613526]
[1646538348274,3.01423452,87.773,87.732,2.83613526]
[1646538348476,3.01423452,87.773,87.715,24.8685698]
[1646538348477,3.01423452,87.766,87.711,24.8685698]
[1646538348677,3.01423452,87.766,87.711,16.5448698]
[1646538348678,113.1,87.764,87.711,16.5448698]
[1646538348875,21.82367176,87.701,87.663,5.7]
[1646538349075,21.82367176,87.701,87.63,17.4107]
[1646538349076,29.00367176,87.701,87.63,17.4107]
[1646538349276,29.00367176,87.701,87.61,16.42]
[1646538349478,3.01423452,87.699,87.631,60.02250578]
[1646538349675,3.01423452,87.693,87.631,60.02250578]
[1646538349876,3.01423452,87.691,87.631,60.02250578]
[1646538350077,5.703,87.69,87.631,60.02250578]
[1646538350477,8.71723452,87.691,87.631,60.02250578]
[1646538350677,5.703,87.691,87.631,60.02250578]
[1646538352377,5.703,87.697,87.631,60.02250578]
[1646538352978,8.71723452,87.697,87.631,60.02250578]
[1646538353779,5.703,87.697,87.631,60.02250578]
[1646538354798,3.01423452,87.699,87.631,60.02250578]
[1646538354856,21.82367176,87.701,87.631,60.02250578]
[1646538355683,21.82367176,87.701,87.641,67.6]
[1646538355881,21.82367176,87.701,87.652,4.95800115]
[1646538356082,21.82367176,87.701,87.671,113.1]
[1646538356282,21.82367176,87.701,87.68,16.42]
[1646538356481,21.82367176,87.701,87.681,0.69395039]
[1646538356683,21.82367176,87.701,87.682,33.35266933]
[1646538357281,21.82367176,87.701,87.658,14.31434708]
[1646538357483,21.82367176,87.701,87.66,16.42]
[1646538358281,21.82367176,87.701,87.661,55.31072325]
[1646538363391,21.82367176,87.701,87.67,17.1059]
[1646538363588,21.82367176,87.701,87.68,16.42]
[1646538363789,21.82367176,87.701,87.681,38.06445186]
[1646538367109,20.82367176,87.701,87.681,38.06445186]
[1646538367310,20.82367176,87.701,87.682,2.83613526]